{"text_format":"3","workbook":"xlsx","n_sheets":2,"sheets":["Start","Profitabilitatea pentru clienți"],"not_rendered":{"charts":1},"read":"whole","date_system":"1900"}

{"sheet":"Start","index":0,"n_rows":7,"n_cols":2,"rows_kept":7}
[null,"DESPRE ACEST ȘABLON"]
[null,"Utilizați această analiză a profitabilității pentru clienți pentru a monitoriza activitatea clienți, costul vânzărilor și alte costuri."]
[null,"Completați informațiile cum ar fi numele firmei și dată, precum și detaliile în tabele."]
[null,"Valorile din celulele care conțin formule și din tabelul Măsurători de rezumat sunt calculate automat, iar diagrama este actualizată."]
[null,"Notă:  "]
[null,"Găsiți instrucțiuni suplimentare în coloana A din foaia de lucru PROFITABILITATEA PENTRU CLIENȚI. Acest text a fost ascuns intenționat. Pentru a elimina textul, selectați coloana A, apoi DELETE. Pentru a reafișa textul, selectați coloana A, apoi schimbați culoarea de font."]
[null,"Pentru a afla mai multe despre tabelele din această foaie de lucru, apăsați SHIFT, apoi F10 într-un tabel, selectați opțiunea TABEL, apoi TEXT ALTERNATIV."]

{"sheet":"Profitabilitatea pentru clienți","index":1,"n_rows":37,"n_cols":6,"rows_kept":37,"merged":[[36,1,36,5]]}
["Creați o analiză a profitabilității pentru clienți în această foaie de lucru. Găsiți instrucțiuni utile despre cum să utilizați această foaie de lucru în celulele din această coloană. Apăsați săgeata în jos pentru a începe."]
["Introduceți numele firmei în celula din dreapta.","Numele firmei"]
["Titlul acestei foi de lucru se află în celula din dreapta.","Analiză a profitabilității pentru clienți"]
["Introduceți dată în celula de la dreapta.","Dată"]
["Sfatul se află în celula din dreapta.","Celulele gri vor fi calculate automat. Nu trebuie să introduceți nimic în ele."]
["Introduceți detaliile în tabelul Activitate clienți, începând cu celula de la dreapta. Următoarele instrucțiuni se află în celula A12.","Activitate clienți:","Nume segment 1","Nume segment 2","Nume segment 3","General"]
[null,"Numărul de clienți activi - începutul perioadei",5,8,8,{"$f":"SUM(C7:E7)","v":21}]
[null,"Numărul de clienți adăugați",2,4,4,{"$f":"SUM(C8:E8)","v":10}]
[null,"Numărul de clienți pierduți/închiși",{"v":-1,"d":"-1 "},{"v":-2,"d":"-2 "},{"v":-2,"d":"-2 "},{"$f":"SUM(C9:E9)","v":{"v":-5,"d":"-5 "}}]
[null,"Numărul de clienți activi - sfârșitul perioadei",{"$f":"SUBTOTAL(109,ActivitateClienți[Nume segment 1])","v":6},{"$f":"SUBTOTAL(109,ActivitateClienți[Nume segment 2])","v":10},{"$f":"SUBTOTAL(109,ActivitateClienți[Nume segment 3])","v":10},{"$f":"SUBTOTAL(109,ActivitateClienți[General])","v":26}]
[]
["Introduceți detaliile în tabelul Analiza profitabilității, începând cu celula din dreapta. Următoarele instrucțiuni se află în celula A16.","Analiza profitabilității:","Nume segment 1","Nume segment 2","Nume segment 3","General"]
[null,"Venit per segment",{"v":1500000,"d":"1,500,000.00 lei"},{"v":1800000,"d":"1,800,000.00 lei"},{"v":2500000,"d":"2,500,000.00 lei"},{"$f":"SUM(AnalizaProfitabilității[[#This Row],[Nume segment 1]:[Nume segment 3]])","v":{"v":5800000,"d":"5,800,000.00 lei"}}]
[null,"Greutate",{"$f":"+C13/$F$13","v":{"v":0.25862068965517243,"d":"26%"}},{"$f":"+D13/$F$13","v":{"v":0.3103448275862069,"d":"31%"}},{"$f":"+E13/$F$13","v":{"v":0.43103448275862066,"d":"43%"}},{"$f":"SUM(AnalizaProfitabilității[[#This Row],[Nume segment 1]:[Nume segment 3]])","v":{"v":1,"d":"100%"}}]
[]
["Introduceți detaliile în tabelul Costul vânzărilor, începând cu celula din dreapta. Următoarele instrucțiuni se află în celula A23.","Costul vânzărilor:","Nume segment 1","Nume segment 2","Nume segment 3","General"]
[null,"Costurile pentru serviciul în curs și asistență",{"v":1000000,"d":"1,000,000.00 lei"},{"v":1400000,"d":"1,400,000.00 lei"},{"v":1400000,"d":"1,400,000.00 lei"},{"$f":"SUM(C17:E17)","v":{"v":3800000,"d":"3,800,000.00 lei"}}]
[null,"Alte costuri directe pentru clienți",{"v":200000,"d":"200,000.00 lei"},{"v":100000,"d":"100,000.00 lei"},{"v":100000,"d":"100,000.00 lei"},{"$f":"SUM(C18:E18)","v":{"v":400000,"d":"400,000.00 lei"}}]
[null,"Costul total al vânzărilor",{"$f":"SUM(C17:C18)","v":{"v":1200000,"d":"1,200,000.00 lei"}},{"$f":"SUM(D17:D18)","v":{"v":1500000,"d":"1,500,000.00 lei"}},{"$f":"SUM(E17:E18)","v":{"v":1500000,"d":"1,500,000.00 lei"}},{"$f":"SUM(F17:F18)","v":{"v":4200000,"d":"4,200,000.00 lei"}}]
[null,"Marja brută",{"$f":"+C13-C19","v":{"v":300000,"d":"300,000.00 lei"}},{"$f":"+D13-D19","v":{"v":300000,"d":"300,000.00 lei"}},{"$f":"+E13-E19","v":{"v":1000000,"d":"1,000,000.00 lei"}},{"$f":"+F13-F19","v":{"v":1600000,"d":"1,600,000.00 lei"}}]
[null,"Greutate",{"$f":"MAX(0, MIN(1,C20/$F$20))","v":{"v":0.1875,"d":"19%"}},{"$f":"MAX(0, MIN(1,D20/$F$20))","v":{"v":0.1875,"d":"19%"}},{"$f":"MAX(0, MIN(1,E20/$F$20))","v":{"v":0.625,"d":"63%"}},{"$f":"SUM(C21:E21)","v":{"v":1,"d":"100%"}}]
[]
["Introduceți detaliile în tabelul Alte costuri, începând cu celula din dreapta. Următoarele instrucțiuni se află în celula A31.","Alte costuri:","Nume segment 1","Nume segment 2","Nume segment 3","General"]
[null,"Achiziție clienți",{"v":105000,"d":"105,000.00 lei"},{"v":120000,"d":"120,000.00 lei"},{"v":235000,"d":"235,000.00 lei"},{"$f":"SUM(AlteCosturi[[#This Row],[Nume segment 1]:[Nume segment 3]])","v":{"v":460000,"d":"460,000.00 lei"}}]
[null,"Marketing clienți",{"v":150000,"d":"150,000.00 lei"},{"v":125000,"d":"125,000.00 lei"},{"v":275000,"d":"275,000.00 lei"},{"$f":"SUM(C25:E25)","v":{"v":550000,"d":"550,000.00 lei"}}]
[null,"Închidere clienți",{"v":80000,"d":"80,000.00 lei"},{"v":190000,"d":"190,000.00 lei"},{"v":140000,"d":"140,000.00 lei"},{"$f":"SUM(C26:E26)","v":{"v":410000,"d":"410,000.00 lei"}}]
[null,"Totalul altor costuri referitoare la clienți",{"$f":"SUM(C24:C26)","v":{"v":335000,"d":"335,000.00 lei"}},{"$f":"SUM(D24:D26)","v":{"v":435000,"d":"435,000.00 lei"}},{"$f":"SUM(E24:E26)","v":{"v":650000,"d":"650,000.00 lei"}},{"$f":"SUM(F24:F26)","v":{"v":1420000,"d":"1,420,000.00 lei"}}]
[null,"Profitul clientului după segment",{"$f":"+C20-C27","v":{"v":-35000,"d":"-35,000.00 lei"}},{"$f":"+D20-D27","v":{"v":-135000,"d":"-135,000.00 lei"}},{"$f":"+E20-E27","v":{"v":350000,"d":"350,000.00 lei"}},{"$f":"SUM(C28:E28)","v":{"v":180000,"d":"180,000.00 lei"}}]
[null,"Greutate",{"$f":"MAX(0,MIN(1, C28/$F$28))","v":{"v":0,"d":"0%"}},{"$f":"MAX(0,MIN(1, D28/$F$28))","v":{"v":0,"d":"0%"}},{"$f":"MAX(0,MIN(1, E28/$F$28))","v":{"v":1,"d":"100%"}},{"$f":"SUM(C29:E29)","v":{"v":1,"d":"100%"}}]
[]
["Tabelul Măsurători de rezumat, care începe de la celula din dreapta, se actualizează automat. Următoarele instrucțiuni se află în celula A37.","Măsurători de rezumat:","Nume segment 1","Nume segment 2","Nume segment 3","Tendință"]
[null,"Costul mediu pentru fiecare client obținut",{"$f":"+C24/C8","v":{"v":52500,"d":"52,500.00 lei"}},{"$f":"+D24/D8","v":{"v":30000,"d":"30,000.00 lei"}},{"$f":"+E24/E8","v":{"v":58750,"d":"58,750.00 lei"}}]
[null,"Costul mediu pentru fiecare client închis",{"$f":"-C26/C9","v":{"v":80000,"d":"80,000.00 lei"}},{"$f":"-D26/D9","v":{"v":95000,"d":"95,000.00 lei"}},{"$f":"-E26/E9","v":{"v":70000,"d":"70,000.00 lei"}}]
[null,"Costul media de marketing pentru fiecare client activ",{"$f":"+C26/ActivitateClienți[[#Totals],[Nume segment 1]]","v":{"v":13333.333333333334,"d":"13,333.33 lei"}},{"$f":"+D25/ActivitateClienți[[#Totals],[Nume segment 2]]","v":{"v":12500,"d":"12,500.00 lei"}},{"$f":"+E25/ActivitateClienți[[#Totals],[Nume segment 3]]","v":{"v":27500,"d":"27,500.00 lei"}}]
[null,"Profitul mediu (pierderile) per client",{"$f":"+C29/ActivitateClienți[[#Totals],[Nume segment 1]]","v":{"v":0,"d":"0.00 lei"}},{"$f":"+D28/ActivitateClienți[[#Totals],[Nume segment 2]]","v":{"v":-13500,"d":"-13,500.00 lei"}},{"$f":"+E28/ActivitateClienți[[#Totals],[Nume segment 3]]","v":{"v":35000,"d":"35,000.00 lei"}}]
[]
["Diagrama coloană grupată, care afișează măsurători de rezumat pentru fiecare segment de clienți, se află în celula de la dreapta.","Diagrama coloană grupată, care afișează măsurătorile de rezumat pentru fiecare segment de clienți, se află în această celulă."]